bitfinex-derivatives/quotes_ETHF0:USTF0_20251001
["timestamp","ask_amount","ask_price","bid_price","bid_amount"]
[1759340783078,0.7462,4309.4,4309.3,1.41100952]
[1759340784680,0.7462,4309.4,4309.3,1.17400952]
[1759340784881,0.7462,4309.4,4309.3,1.41100952]
[1759340785582,0.7462,4309.4,4309.3,0.46516952]
[1759340785976,0.7462,4309.4,4309.3,0.23956952]
[1759340786175,0.7462,4309.4,4309.3,0.00256952]
[1759340786484,1.16363,4309.4,4309.3,0.23956952]
[1759340787983,1.69255596,4309.4,4309.3,0.23956952]
[1759340789875,1.69255596,4309.4,4308.2,36.204]
[1759340789876,0.7769,4308.1,4308.0,3.84097]
[1759340790083,0.7769,4308.1,4308.0,4.07797]
[1759340790383,0.7769,4308.1,4308.0,44.87797]
[1759340790587,0.7769,4308.1,4308.0,45.18797]
[1759340790882,0.7769,4308.1,4308.0,45.19041606]
[1759340792783,0.7769,4308.1,4308.0,44.77284606]
[1759340799399,0.7769,4308.1,4308.0,44.53584606]
[1759340799590,0.7769,4308.1,4308.0,44.77284606]
[1759340799897,0.7769,4308.1,4308.0,4.18834606]
[1759340800792,0.5635,4308.1,4308.0,4.18834606]
[1759340801589,0.5635,4308.1,4308.0,4.31494606]
[1759340801997,0.3384,4308.3,4308.0,4.00494606]
[1759340802193,0.5635,4308.3,4308.2,0.7411]
[1759340802495,0.98104,4308.3,4308.2,0.9781]
[1759340802896,0.98104,4308.3,4308.2,0.7411]
[1759340803097,0.98104,4308.3,4308.2,0.9781]
[1759340803595,1.19444,4308.3,4308.2,0.9781]
[1759340803794,0.98104,4308.3,4308.2,0.9781]
[1759340803991,0.98104,4308.3,4308.2,0.7411]
[1759340804297,0.7769,4308.3,4308.2,0.9781]
[1759340804894,3.2078,4308.7,4308.2,0.9781]
[1759340805099,1.04358,4309.4,4308.5,0.8677]
[1759340805100,0.5635,4308.6,4308.5,0.8677]
[1759340805398,0.5635,4308.6,4308.5,1.1047]
[1759340805787,0.3384,4308.6,4308.5,1.1047]
[1759340806192,0.5635,4308.6,4308.5,1.1047]
[1759340807402,0.5635,4308.6,4308.5,1.52222]
[1759340807597,0.5635,4308.6,4308.5,1.1047]
[1759340808502,0.5635,4308.6,4308.5,0.9781]
[1759340809398,0.5635,4308.6,4308.5,0.7411]
[1759340809598,0.5635,4308.6,4308.5,0.9781]
[1759340810199,0.3384,4308.6,4308.5,1.1047]
[1759340810400,0.7769,4308.6,4308.5,0.9781]
[1759340811700,1.19441,4308.6,4308.5,0.9781]
[1759340812601,0.7769,4308.6,4308.5,0.9781]
[1759340814305,0.7769,4308.6,4308.5,0.7411]
[1759340814501,0.7769,4308.6,4308.5,0.9781]
[1759340816500,1.19441,4308.6,4308.5,0.9781]
[1759340822814,0.7769,4308.6,4308.5,0.9781]
[1759340826110,1.19441,4308.6,4308.2,0.3248]
[1759340826309,0.7625,4308.3,4308.2,0.5459]
[1759340826607,0.5412,4308.3,4308.2,0.9898]
[1759340827015,0.4442,4308.1,4308.0,0.00244606]
[1759340827309,0.7625,4308.1,4308.0,0.46054606]
[1759340827505,0.7625,4308.1,4308.0,0.78534606]
[1759340828511,1.71047853,4308.1,4308.0,0.00244606]
[1759340828711,1.71047853,4308.1,4308.0,0.23944606]
[1759340833819,1.71047853,4308.1,4308.0,0.00244606]
[1759340834122,1.71047853,4308.1,4308.0,0.23944606]
[1759340834324,1.18006,4308.1,4308.0,0.23944606]
[1759340838925,1.7096024,4308.1,4308.0,0.23944606]
[1759340841430,1.7096024,4308.1,4308.0,0.00244606]
[1759340841633,1.7096024,4308.1,4308.0,0.23944606]
[1759340842641,0.2096,4306.4,4306.3,1.66623125]
[1759340842938,0.7589,4306.4,4306.3,0.7557]
[1759340843240,3.2078,4307.3,4307.2,0.4253]
[1759340843241,3.4174,4307.3,4307.2,0.4253]
[1759340843431,3.7538,4307.3,4307.2,0.9917]
[1759340843632,3.75545135,4307.3,4307.2,0.99449898]
[1759340846826,3.96835135,4307.3,4307.2,0.99449898]
[1759340849237,3.75545135,4307.3,4307.2,0.99449898]
[1759340849836,0.54765135,4307.3,4307.2,0.99449898]
[1759340850439,0.77315135,4307.3,4307.2,0.23879898]
[1759340850643,0.77315135,4307.3,4307.2,0.44479898]
[1759340851237,0.77315135,4307.3,4307.2,0.23879898]
[1759340851538,0.77315135,4307.3,4307.2,0.44479898]
[1759340851844,0.77315135,4307.3,4307.2,0.76559898]
[1759340852537,0.77315135,4307.3,4307.2,0.98799898]
[1759340857041,3.7651,4307.8,4307.7,0.62361]
[1759340857348,3.7651,4307.8,4307.7,1.40281]
[1759340857539,0.5573,4307.8,4307.7,1.40281]
[1759340857844,0.5573,4307.8,4307.7,42.20281]
[1759340858044,0.55990845,4307.8,4307.7,42.20281]
[1759340860736,0.55990845,4307.8,4307.7,41.7852]
[1759340860941,0.55990845,4307.8,4307.7,41.4644]
[1759340861143,0.3313,4307.4,4307.2,3.21059898]
[1759340861345,0.7828,4307.4,4307.3,0.236]
[1759340861744,0.7828,4307.4,4307.3,41.036]
[1759340862453,0.7828,4307.4,4307.3,40.8]
[1759340862650,0.7828,4307.4,4307.3,41.036]
[1759340863146,0.3313,4307.3,4307.2,3.21059898]
[1759340863346,0.7828,4307.3,4307.2,0.23879898]
[1759340863650,0.7828,4307.3,4307.2,41.03879898]
[1759340864253,0.7828,4307.3,4307.2,0.23879898]
[1759340864549,0.7828,4307.3,4307.2,0.00279898]
[1759340864745,0.4515,4306.6,4306.5,41.3268]
[1759340864944,0.7828,4306.6,4306.5,41.5628]
[1759340865644,0.3313,4306.9,4306.5,0.7966]
[1759340865849,0.5573,4306.9,4306.8,0.7492]
[1759340866046,3.2078,4307.0,4306.9,0.7492]
[1759340866950,0.3313,4307.3,4307.0,0.3208]
[1759340867149,1.20045,4307.3,4307.2,0.4284]
[1759340867352,1.73104639,4307.3,4307.2,0.7492]
[1759340867850,1.31339639,4307.3,4307.2,0.7492]
[1759340868655,1.73104639,4307.3,4307.2,0.7492]
[1759340869555,1.31339639,4307.3,4307.2,0.7492]
[1759340870449,1.31339639,4307.3,4307.2,1.16686]
[1759340870656,0.7828,4307.3,4307.2,1.16686]
[1759340870954,0.7828,4307.3,4307.1,0.236]
[1759340870955,0.5573,4307.6,4307.5,1.16683]
[1759340871150,0.5573,4307.6,4307.5,1.40283]
[1759340872356,0.7828,4307.6,4307.5,1.40283]
[1759340874652,0.7828,4307.6,4307.5,0.9852]
[1759340875354,0.5573,4307.6,4307.5,0.9852]
[1759340875554,0.7798,4307.6,4307.5,0.9852]
[1759340877049,0.7798,4307.6,4307.5,0.6644]
[1759340877453,0.00260845,4307.8,4307.5,1.53153]
[1759340877652,0.00260845,4307.8,4307.7,1.17711]
[1759340878254,0.00260845,4307.8,4307.7,41.97711]
[1759340878657,0.00260845,4307.8,4307.7,41.5595]
[1759340879659,0.32460845,4307.8,4307.7,41.5595]
[1759340879962,0.32460845,4307.8,4307.7,41.7955]
[1759340880363,0.00260845,4307.8,4307.7,41.97711]
[1759340880660,0.00260845,4307.8,4307.7,42.21311]
[1759340882161,0.00260845,4307.8,4307.7,45.42091]
[1759340884866,0.00260845,4307.8,4307.7,45.0033]
[1759340885061,0.32460845,4307.8,4307.7,45.0033]
[1759340887066,0.32460845,4307.8,4307.7,41.0174]
[1759340887267,0.8775,4307.5,4307.4,0.2174]
[1759340887564,0.8775,4307.5,4307.4,0.4534]
[1759340887756,0.8775,4307.5,4307.4,0.7723]
[1759340888269,0.8775,4307.5,4307.4,0.9955]
[1759340890664,0.5318,4307.7,4307.6,0.2232]
[1759340890862,0.7543,4307.7,4307.6,0.9955]
[1759340892872,1.17191,4307.7,4307.6,0.9955]
[1759340893174,0.4323,4307.4,4307.3,0.5363]
[1759340893370,0.84997,4307.1,4307.0,0.2174]
[1759340893672,0.2098,4306.7,4306.6,0.2174]
[1759340893973,0.7543,4306.7,4306.6,0.9955]
[1759340894170,0.7543,4306.7,4306.6,0.4534]
[1759340894371,0.7543,4306.7,4306.6,41.2534]
[1759340894770,0.7543,4306.7,4306.6,41.5723]
[1759340895369,0.7543,4306.7,4306.6,0.2174]
[1759340895671,1.17201,4306.7,4306.6,0.4534]
[1759340895970,1.17201,4306.7,4306.6,0.2174]
[1759340896275,1.17202,4306.6,4306.5,0.00217473]
[1759340896477,1.17202,4306.6,4306.5,0.23817473]
[1759340896673,1.17202,4306.6,4306.5,0.45557473]
[1759340896867,0.7543,4306.6,4306.5,0.45557473]
[1759340897272,0.7543,4306.6,4306.5,0.99767473]
[1759340898074,0.7543,4306.9,4306.8,0.4406]
[1759340898275,0.7543,4306.9,4306.8,0.9955]
[1759340898978,1.17199,4306.9,4306.8,0.9955]
[1759340899882,1.17199,4306.9,4306.8,0.7595]
[1759340900073,1.17199,4306.9,4306.8,0.9955]
[1759340900273,1.17199,4306.9,4306.8,0.6766]
[1759340901081,1.14662,4306.6,4306.5,40.80217473]
[1759340901282,1.14662,4306.6,4306.5,41.03817473]
[1759340901578,1.14662,4306.6,4306.5,0.46147473]
[1759340901780,0.7289,4306.6,4306.5,0.46147473]
[1759340901982,0.7289,4306.6,4306.5,0.22547473]
[1759340902282,0.7289,4306.6,4306.5,0.46147473]
[1759340902578,0.7289,4306.6,4306.5,0.77387473]
[1759340902780,0.7289,4306.6,4306.5,0.75967473]
[1759340903280,0.7289,4306.6,4306.5,0.99567473]
[1759340903581,1.14662,4306.6,4306.5,0.46147473]
[1759340904281,0.7289,4306.6,4306.5,0.46147473]
[1759340905285,1.14662,4306.6,4306.5,0.22547473]
[1759340905485,1.14662,4306.6,4306.5,0.46147473]
[1759340905783,1.14662,4306.6,4306.5,0.23817473]
[1759340906378,1.14662,4306.6,4306.5,0.00217473]
[1759340906582,1.14662,4306.6,4306.5,0.23817473]
[1759340908587,1.14662,4306.6,4306.5,0.00217473]
[1759340908888,1.14662,4306.6,4306.5,0.23817473]
[1759340910189,1.14662,4306.6,4306.5,0.00217473]
[1759340910390,1.14662,4306.6,4306.5,0.23817473]
[1759340912384,1.14662,4306.6,4306.5,0.99367473]
[1759340915292,0.7289,4306.6,4306.5,0.99367473]
[1759340915488,1.14662,4306.6,4306.5,0.99367473]
[1759340916696,0.7289,4306.6,4306.5,0.99367473]
[1759340917295,1.14662,4306.6,4306.5,0.99367473]
[1759340917492,0.7289,4306.6,4306.5,0.75767473]
[1759340917698,0.7289,4306.6,4306.5,0.99367473]
[1759340918696,1.14662,4306.6,4306.5,0.99367473]
[1759340919890,0.7289,4306.6,4306.5,0.99367473]
[1759340920396,1.14662,4306.6,4306.5,0.00217473]
[1759340920590,1.14662,4306.6,4306.5,0.23817473]
[1759340921692,1.14662,4306.6,4306.5,0.45417473]
[1759340921996,1.14662,4306.6,4306.5,0.99367473]
[1759340921997,0.5193,4306.6,4306.5,0.99367473]
[1759340923496,0.7442,4306.6,4306.5,0.99367473]
[1759340925001,1.16192,4306.6,4306.5,0.99367473]
[1759340926296,1.16192,4306.6,4306.5,0.45417473]
[1759340926907,1.16192,4306.6,4306.5,0.00217473]
[1759340927097,1.69126357,4306.6,4306.5,0.00217473]
[1759340927402,1.69126357,4306.6,4306.5,0.23817473]
[1759340928503,1.69126357,4306.6,4306.5,0.00217473]
[1759340929703,6.69126357,4306.6,4306.5,0.00217473]
[1759340934202,1.16775,4306.3,4306.2,0.25027]
[1759340934409,4.90489357,4306.3,4306.2,0.25027]
[1759340934709,1.30142,4305.5,4305.4,0.5541]
[1759340934907,1.30142,4305.5,4305.4,0.7901]
[1759340935201,0.75,4305.5,4305.4,41.81012196]
[1759340936007,0.5397,4305.5,4305.4,41.81012196]
[1759340936499,0.3139,4305.5,4305.4,41.81012196]
[1759340936803,0.5397,4305.7,4305.6,0.2185]
[1759340937009,0.5397,4305.7,4305.6,0.7721]
[1759340937508,1.1678,4305.7,4305.6,0.7721]
[1759340940811,0.75,4305.7,4305.6,0.7721]
[1759340941210,0.73168,4306.0,4305.9,0.4365]
[1759340941408,0.95748,4306.0,4305.9,1.0081]
[1759340942011,0.5397,4306.0,4305.9,1.0081]
[1759340943100,0.75,4306.0,4305.9,0.7721]
[1759340943307,0.75,4306.0,4305.9,1.0081]
[1759340944108,0.3139,4306.3,4306.0,0.88547]
[1759340944309,0.3139,4306.3,4306.2,0.7721]
[1759340944512,0.3139,4306.3,4306.2,1.0081]
[1759340944710,0.5397,4306.3,4306.2,1.0081]
[1759340946313,0.75,4306.3,4306.2,1.0081]
[1759340946514,1.16775,4306.3,4306.2,1.0081]
[1759340946714,1.16775,4306.3,4306.2,0.6725]
[1759340947920,1.16775,4306.3,4306.2,0.4365]
[1759340948119,1.16775,4306.3,4306.2,0.4545]
[1759340948420,0.8836,4306.0,4305.9,0.2185]
[1759340948613,1.30137,4306.0,4305.9,0.4545]
[1759340949419,0.8836,4306.0,4305.9,1.0081]
[1759340949612,0.5397,4306.0,4305.9,0.7721]
[1759340949818,0.5397,4306.0,4305.9,1.0081]
[1759340950324,3.2078,4306.4,4305.9,1.0081]
[1759340950325,0.5397,4306.3,4306.2,0.7721]
[1759340950714,0.5397,4306.3,4306.2,1.0081]
[1759340951115,1.16775,4306.3,4306.2,1.0081]
[1759340951516,0.75,4306.3,4306.2,1.0081]
[1759340952620,1.16775,4306.3,4306.2,1.0081]
[1759340954225,0.41779,4305.8,4305.7,3.2078]
[1759340954424,0.85399,4304.8,4304.7,3.2078]
[1759340954625,1.16789,4304.8,4304.7,3.2078]
[1759340955126,1.16789,4304.8,4304.7,3.4263]
[1759340955322,0.5397,4304.8,4304.7,3.9799]
[1759340955531,0.41788,4304.9,4304.8,0.7721]
[1759340955727,0.41788,4304.9,4304.8,1.0081]
[1759340956617,1.16788,4304.9,4304.8,0.236]
[1759340956927,0.75,4304.8,4304.7,0.43883944]
[1759340957226,0.75,4304.8,4304.7,0.77443944]
[1759340957527,3.2078,4305.2,4304.7,0.77443944]
[1759340957824,0.75,4305.0,4304.9,0.2185]
[1759340958030,0.75,4304.8,4304.7,0.00233944]
[1759340958227,0.75,4304.8,4304.7,0.22083944]
[1759340958429,0.75,4304.8,4304.7,0.77443944]
[1759340959226,0.5397,4304.8,4304.7,0.77443944]
[1759340959830,0.75,4304.8,4304.7,0.77443944]
[1759340960131,0.5397,4304.8,4304.7,0.77443944]
[1759340961021,0.75,4304.8,4304.7,0.77443944]
[1759340961216,0.75,4304.8,4304.7,0.21523944]
[1759340961431,0.75,4304.8,4304.7,0.00233944]
[1759340962830,6.27667645,4304.8,4304.7,0.00233944]
[1759340963127,1.27667645,4304.8,4304.7,0.00233944]
[1759340963329,5.75,4304.8,4304.7,3.944e-05]
[1759340963536,5.75,4304.8,4302.9,3.2078]
[1759340963537,0.5704,4303.5,4302.9,3.2078]
[1759340963726,0.41815,4302.1,4302.0,0.451]
[1759340964026,0.41825,4301.2,4301.0,0.1285]
[1759340964230,0.4183,4300.7,4300.5,0.1285]
[1759340964430,3.5348,4300.6,4299.0,0.1285]
[1759340964630,0.09,4300.6,4300.5,0.1285]
[1759340964828,3.20997185,4300.6,4300.5,0.3351]
[1759340965227,3.20997185,4300.6,4300.5,0.5403]
[1759340965830,3.2078,4301.2,4301.1,0.7343]
[1759340966031,3.2078,4301.2,4301.1,0.9743]
[1759340966637,3.2078,4301.2,4301.1,0.7343]
[1759340966930,3.2095397,4301.2,4301.1,0.7343]
[1759340968034,3.2095397,4301.2,4301.1,0.9743]
[1759340968236,3.2095397,4301.2,4301.1,0.7343]
[1759340968438,3.2095397,4301.2,4301.1,0.9743]
[1759340968934,3.2095397,4301.2,4301.1,41.7743]
[1759340969131,3.2095397,4301.2,4301.1,46.5343]
[1759340969438,3.2095397,4301.2,4301.1,41.7743]
[1759340969638,3.2095397,4301.2,4301.1,41.5343]
[1759340969939,3.2095397,4301.2,4301.1,41.7743]
[1759340970932,3.2095397,4301.2,4301.1,41.5343]
[1759340971137,3.2095397,4301.2,4301.1,41.7753]
[1759340971334,3.2095397,4301.2,4301.1,41.5343]
[1759340971636,3.2095397,4301.2,4301.1,41.7743]
[1759340972038,0.0017397,4301.2,4301.1,41.7743]
[1759340974030,0.0017397,4301.2,4301.1,41.5343]
[1759340974233,0.0017397,4301.2,4301.1,41.7743]
[1759340974633,0.0017397,4301.2,4301.1,41.5343]
[1759340974833,0.0017397,4301.2,4301.1,41.7743]
[1759340975233,3.2095397,4301.2,4301.1,0.5625]
[1759340975435,3.2095397,4301.2,4301.1,0.7691]
[1759340975636,3.2095397,4301.2,4301.1,0.9743]
[1759340978239,3.2095397,4301.2,4301.1,0.7343]
[1759340978447,3.2095397,4301.2,4301.1,0.9743]
[1759340982749,3.2078,4301.7,4301.6,0.7343]
[1759340982944,3.2078,4301.7,4301.6,0.9743]
[1759340983442,3.2078,4301.7,4301.6,41.7743]
[1759340983646,3.2100414,4301.7,4301.6,41.7743]
[1759340985043,0.0022414,4301.7,4301.6,41.7743]
[1759340985241,3.2078,4302.7,4302.6,0.4118]
[1759340985444,3.2078,4302.7,4302.6,0.9743]
[1759340986241,3.20991484,4302.7,4302.6,0.32478917]
[1759340986446,3.20991484,4302.7,4302.6,0.56478917]
[1759340986650,3.20991484,4302.7,4302.6,0.77138917]
[1759340986949,3.20991484,4302.7,4302.6,0.73658917]
[1759340987149,3.20991484,4302.7,4302.6,0.97658917]
[1759340991443,8.74599622,4302.7,4302.6,0.30066141]
[1759340991853,0.4181,4302.6,4302.5,0.1285]
[1759340992154,0.95418138,4302.6,4302.5,0.1285]
[1759340992851,0.95418138,4302.6,4302.5,0.1313537]
[1759340993652,0.95418138,4302.6,4302.5,0.4560537]
[1759340994049,0.95418138,4302.6,4302.5,0.6697537]
[1759340994249,0.95418138,4302.6,4302.5,0.4560537]
[1759340994550,0.95418138,4302.6,4302.5,0.6697537]
[1759340995858,0.95418138,4302.6,4302.5,0.8822537]
[1759340996060,0.53608138,4302.6,4302.5,1.1222537]
[1759340996946,0.00211484,4302.7,4302.6,1.169]
[1759340997353,0.00211484,4302.7,4302.6,0.7509]
[1759340998157,0.42020484,4302.7,4302.6,0.7509]
[1759340998659,0.42020484,4302.7,4302.6,41.5509]
[1759340999056,0.42020484,4302.7,4302.6,0.9909]
[1759340999261,3.62800484,4302.7,4302.6,0.9909]
[1759340999461,4.1609608,4302.7,4302.6,0.9909]
[1759340999861,4.1609608,4302.7,4302.6,0.7784]
[1759341000251,4.1609608,4302.7,4302.6,0.3247]
[1759341000455,0.41815,4302.1,4302.0,0.1285]
[1759341000655,3.62595,4302.1,4302.0,0.1285]
[1759341000853,4.15890596,4302.1,4302.0,0.3422]
[1759341001163,4.15890596,4302.1,4302.0,0.5547]
[1759341001356,4.15890596,4302.1,4302.0,0.5822]
[1759341001558,3.74075596,4302.1,4302.0,0.79755695]
[1759341002662,3.74075596,4302.1,4302.0,1.12225695]
[1759341003061,3.74075596,4302.1,4302.0,0.45605695]
[1759341004562,3.74075596,4302.1,4302.0,0.88225695]
[1759341005458,3.2078,4302.6,4302.0,0.88225695]
[1759341005768,3.2078,4302.6,4302.5,0.8738]
[1759341005969,3.74072482,4302.6,4302.5,1.1138]
[1759341006463,0.00211484,4302.7,4302.6,0.5384]
[1759341006669,0.00211484,4302.7,4302.6,0.7509]
[1759341007061,3.2078,4303.6,4303.5,0.8738]
[1759341007262,3.2078,4303.6,4303.5,1.1138]
[1759341007960,3.2078,4303.6,4303.5,6.1138]
[1759341008265,0.00197955,4303.6,4303.5,0.8738]
[1759341008565,3.2078,4304.7,4304.5,0.1229]
[1759341008866,3.2078,4305.7,4305.6,0.3247]
[1759341009064,3.2078,4305.7,4305.6,0.5647]
[1759341009467,3.20960959,4305.7,4305.6,0.56755925]
[1759341009760,3.62740959,4305.7,4305.6,0.56755925]
[1759341009962,3.20960959,4305.7,4305.6,0.56755925]
[1759341010369,3.20960959,4305.7,4305.6,0.32755925]
[1759341010665,3.20960959,4305.7,4305.6,0.45955925]
[1759341011368,3.20960959,4305.7,4305.6,0.88575925]
[1759341011564,3.20960959,4305.7,4305.6,0.75375925]
[1759341011870,3.20960959,4305.7,4305.6,0.32755925]
[1759341012166,3.20960959,4305.7,4305.6,0.00285925]
[1759341012367,8.20960959,4305.7,4305.6,0.00285925]
[1759341013268,1.04456,4305.5,4304.8,0.3247]
[1759341013466,3.2078,4304.9,4304.8,0.3247]
[1759341014064,0.41791,4304.6,4304.3,0.3247]
[1759341014272,0.41791,4304.6,4304.5,0.68974078]
[1759341014876,0.41791,4304.6,4304.5,0.44974078]
[1759341016478,0.41791,4304.6,4304.5,0.66344078]
[1759341018174,0.41791,4304.6,4304.5,0.44974078]
[1759341018374,0.41791,4304.6,4304.5,0.12504078]
[1759341018568,0.41791,4304.6,4304.5,0.00214078]
[1759341019074,5.41791,4304.6,4304.5,0.00214078]
[1759341019261,0.41791,4304.6,4304.5,0.44974078]
[1759341020770,5.41791,4304.6,4304.5,0.00214078]
[1759341022477,5.41791,4304.6,4304.5,0.30954078]
[1759341022974,5.41791,4304.6,4304.5,0.00214078]
[1759341023172,0.41796,4304.1,4304.0,0.4303]
[1759341023375,3.62576,4304.1,4304.0,0.4303]
[1759341023879,3.62576,4304.1,4304.0,0.8455]
[1759341024374,3.62576,4304.1,4304.0,0.84741952]
[1759341024774,3.62576,4304.1,4304.0,0.00191952]
[1759341024974,3.62576,4304.1,4304.0,0.45461952]
[1759341033685,3.62576,4304.1,4304.0,0.00191952]
[1759341034086,3.62576,4304.1,4304.0,0.45461952]
[1759341034490,0.41801,4303.6,4303.5,0.1229]
[1759341034784,3.62581,4303.6,4303.5,0.1229]
[1759341035288,3.62581,4303.6,4303.5,0.4415]
[1759341035579,3.62581,4303.6,4303.5,0.44438982]
[1759341035984,3.86481,4303.6,4303.5,0.00288982]
[1759341036181,9.37945463,4303.6,4303.5,9.82e-06]
[1759341038986,4.37945463,4303.6,4303.5,9.82e-06]
[1759341039496,0.4182,4301.6,4301.5,0.1341]
[1759341039680,3.2078,4301.6,4301.5,0.8767]
[1759341039881,3.12550394,4301.6,4301.5,0.8767]
[1759341040081,3.2078,4302.2,4302.0,0.41816]
[1759341040286,3.2078,4302.2,4302.1,0.7426]
[1759341040490,3.21027641,4302.2,4302.1,0.74500209]
[1759341040796,3.21027641,4302.2,4302.1,5.74500209]
[1759341041092,0.00247641,4302.2,4302.1,5.74500209]
[1759341041788,3.2078,4302.7,4302.6,0.424]
[1759341041988,3.2078,4302.7,4302.6,0.9826]
[1759341042588,3.2078,4302.7,4302.6,5.9826]
[1759341042789,3.20996158,4302.7,4302.6,5.9826]
[1759341043692,0.00216158,4302.7,4302.6,5.9826]
[1759341044994,0.00216158,4302.7,4302.6,5.7426]
[1759341045194,0.00216158,4302.7,4302.6,5.9826]
[1759341045490,0.00216158,4302.7,4302.6,0.9826]
[1759341045994,0.00216158,4302.7,4302.6,5.9826]
[1759341047096,0.74996158,4302.7,4302.6,0.424]
[1759341047295,0.7478,4302.2,4302.1,0.22080209]
[1759341047491,0.7478,4302.2,4302.1,0.46080209]
[1759341047796,0.7478,4302.2,4302.1,0.66640209]
[1759341048794,0.7478,4302.2,4302.1,0.00240209]
[1759341048995,0.5323,4302.2,4302.1,0.74500209]
[1759341049886,0.1321,4302.5,4302.1,0.74500209]
[1759341049887,0.41813,4302.4,4302.1,0.74500209]
[1759341050089,0.95043,4302.3,4302.2,0.7426]
[1759341050286,1.16593,4302.3,4302.1,0.00240209]
[1759341050492,3.9556,4302.2,4302.1,0.00240209]
[1759341050894,8.517,4302.2,4301.7,0.241]
[1759341051101,1.16598,4301.8,4301.7,0.241]
[1759341051598,0.3092,4301.4,4301.3,0.9836]
[1759341051797,0.5323,4301.4,4301.3,0.9836]
[1759341052099,0.7478,4301.4,4301.3,0.00290712]
[1759341053700,0.7478,4301.4,4301.3,0.22740712]
[1759341055397,0.7478,4301.4,4301.3,0.00290712]
[1759341055601,0.7478,4301.4,4301.3,0.22740712]
[1759341055894,0.7478,4301.4,4301.3,0.00290712]
[1759341056098,0.7478,4301.4,4301.3,0.22740712]
[1759341057201,0.7478,4301.4,4301.3,0.00290712]
[1759341057403,1.16602,4301.4,4301.3,0.00290712]
[1759341061202,1.16602,4301.4,4301.3,0.22740712]
[1759341062689,1.16602,4301.4,4301.3,0.00290712]
[1759341066998,0.3284,4300.4,4300.3,3.2078]
[1759341067204,1.18362,4300.4,4300.3,3.4323]
[1759341067410,0.3284,4300.4,4300.3,4.40873]
[1759341067607,0.3284,4300.9,4300.3,44.87193]
[1759341067908,1.18357,4300.9,4300.8,0.4458]
[1759341068114,1.18357,4300.9,4300.8,0.78423092]
[1759341068607,1.18357,4300.9,4300.8,0.68743092]
[1759341069112,1.18357,4300.9,4300.8,0.00163092]
[1759341073809,0.41837,4299.9,4299.8,3.2078]
[1759341074010,1.18367,4299.9,4299.8,3.6723]
[1759341074209,0.566,4299.5,4299.4,0.2245]
[1759341074514,0.566,4299.5,4299.4,0.6858]
[1759341074719,0.566,4299.5,4299.4,1.0226]
[1759341074912,0.89722811,4299.5,4299.4,1.02511427]
[1759341075210,1.31563811,4299.5,4299.4,0.44831427]
[1759341075415,1.31563811,4299.5,4299.4,0.68831427]
[1759341076012,0.41851,4298.5,4298.3,3.2078]
[1759341076211,0.7653,4298.4,4298.3,3.6536]
[1759341076409,0.7653,4298.4,4298.3,4.2304]
[1759341076715,0.3284,4298.4,4298.3,4.2304]
[1759341077107,3.3369,4299.0,4298.3,8.8954365]
[1759341077413,0.5458,4299.0,4298.9,0.7826]
[1759341077613,0.5458,4299.0,4298.9,1.0226]
[1759341077815,0.8944,4299.0,4298.9,0.6868]
[1759341078720,0.8944,4299.0,4298.9,1.0236]
[1759341079512,0.2174,4299.4,4299.3,0.4458]
[1759341079712,0.7653,4299.4,4299.3,0.4458]
[1759341079919,0.7653,4299.4,4299.3,0.6868]
[1759341080218,0.7653,4299.4,4299.3,0.4458]
[1759341080419,0.7653,4299.4,4299.3,0.6868]
[1759341080611,0.5425,4298.9,4298.8,0.7578]
[1759341080915,0.5425,4298.9,4298.8,0.9988]
[1759341081107,0.5425,4298.9,4298.8,0.662]
[1759341081314,0.5425,4298.9,4298.8,1.0005]
[1759341081811,0.7475,4298.9,4298.8,0.421]
[1759341082013,0.5425,4298.5,4298.4,0.3385]
[1759341082313,0.3304,4298.5,4298.4,1.0005]
[1759341083120,0.5425,4298.5,4298.4,1.0005]
[1759341084306,0.3221,4298.7,4298.6,0.2173]
[1759341084511,0.7456,4298.7,4298.6,0.4419]
[1759341085020,0.7456,4298.7,4298.6,0.7602]
[1759341085217,0.7456,4298.7,4298.6,0.6829]
[1759341086515,0.7456,4298.7,4298.6,1.0012]
[1759341086912,0.7456,4298.7,4298.6,0.6829]
[1759341087109,0.1228,4298.5,4298.3,3.2096365]
[1759341087314,1.2869,4298.5,4298.4,0.4583]
[1759341087714,1.2869,4298.5,4298.4,0.6829]
[1759341088421,1.2869,4298.5,4298.4,0.4419]
[1759341088620,1.2869,4298.5,4298.4,0.2173]
[1759341089016,1.2869,4298.5,4298.4,0.4583]
[1759341089218,1.2869,4298.5,4298.4,0.241]
[1759341089618,4.4947,4298.5,4298.3,0.0018365]
[1759341089824,4.4947,4298.5,4298.3,0.2428365]
[1759341091317,4.4947,4298.5,4297.5,0.5166]
[1759341091318,1.16424,4297.1,4297.0,0.4419]
[1759341091520,0.3221,4297.1,4297.0,0.7602]
[1759341091711,0.5352,4297.3,4297.2,0.4419]
[1759341091913,0.5352,4297.3,4297.2,1.0012]
[1759341092421,0.95382,4297.3,4297.2,1.00298138]
[1759341092822,1.16422,4297.3,4297.2,0.68468138]
[1759341093216,1.16422,4297.3,4294.9,1.6660215]
[1759341093217,0.2104,4295.1,4294.9,1.6660215]
[1759341093519,3.2078,4296.5,4296.4,0.7158]
[1759341093713,3.2078,4296.5,4296.4,0.9568]
[1759341093912,3.2078,4296.5,4296.4,6.37551]
[1759341094114,3.2078,4297.0,4296.9,0.7158]
[1759341094319,3.2078,4297.0,4296.9,0.9578]
[1759341094627,3.20971031,4297.0,4296.9,0.9578]
[1759341094821,3.74491031,4297.0,4296.9,0.6839]
[1759341095021,4.07811031,4297.0,4296.5,0.2739]
[1759341095217,4.07811031,4297.0,4295.5,0.0913]
[1759341095218,0.3221,4295.9,4295.1,0.0566]
[1759341095422,3.743,4295.8,4295.7,0.0906]
[1759341095619,3.743,4295.8,4295.7,0.4242]
[1759341096020,3.5299,4295.8,4295.7,0.4242]